fUSD/lending_fUSD_20260316
["ID","MTS","AMOUNT","RATE_DAILY","PERIOD"]
[408452485,1773658242061,-500.0,0.00019999,2]
[408452486,1773658242070,-500.0,0.00019999,2]
[408452487,1773658242081,-500.0,0.00019999,2]
[408452488,1773658242093,-509.69645658,0.00019999,2]
[408452489,1773658242106,-2127.0,0.0002,5]
[408452490,1773658242118,-1693.0,0.0002,5]
[408452491,1773658242129,-435.0,0.0002,2]
[408452492,1773658242141,-500.0,0.0002,7]
[408452493,1773658242151,-2560669.64800019,0.0002,2]
[408452494,1773658242348,-621.86898814,0.0002,2]
[408452495,1773658242363,-1393.20373301,0.0002,2]
[408452496,1773658242394,-568.9,0.0002,2]
[408452506,1773658242866,-84916.13244062,0.0002,2]
[408452507,1773658243077,-246189.35724712,0.0002,2]
[408452519,1773658245554,-153.88238388,0.00019714,2]
[408452520,1773658245565,-651.20622351,0.0002,2]
[408452521,1773658245578,-1180.128,0.0002,2]
[408452522,1773658245608,-4418.88196997,0.0002,2]
[408452523,1773658245620,-28028.11980498,0.0002,2]
[408452524,1773658245729,-155273.37932789,0.0002,2]
[408452525,1773658245888,-902.0,0.0002,2]
[408452526,1773658245902,-720.69661148,0.0002,2]
[408452529,1773658249813,10000.0,0.000205,30]
[408452532,1773658365568,10000.0,0.000205,30]
[408452533,1773658544459,12406.71,0.000205,10]
[408452534,1773658562601,2492.63323976,0.00022,14]
[408452535,1773658562622,49723.18,0.00022,14]
[408452545,1773658851235,-177.45,0.0001518,2]
[408452547,1773658905568,151.64568794,0.0001518,2]
[408452550,1773659138856,-402.1087,0.000164,2]
[408452555,1773659234107,-2.7405,0.000164,2]
[408452556,1773659234132,-159.63859055,0.00016598,2]
[408452557,1773659234157,-300.0,0.00017477,2]
[408452558,1773659234182,-1200.0,0.00017477,2]
[408452559,1773659234207,-179.55142206,0.00017477,2]
[408452560,1773659370106,-1579.38518194,0.00015957,2]
[408452570,1773659431812,-36.72481806,0.00015957,2]
[408452571,1773659431824,-150.0,0.000175,2]
[408452572,1773659431834,-585.0,0.000175,2]
[408452573,1773659431843,-1200.0,0.00017552,2]
[408452574,1773659431854,-912.51,0.00017553,2]
[408452575,1773659431863,-699.38092913,0.00017553,2]
[408452576,1773659431873,-1002.5624006,0.00017553,2]
[408452577,1773659431882,-498.01999003,0.00017553,2]
[408452578,1773659431896,-250.0,0.00017553,2]
[408452579,1773659431905,-58.22808825,0.00017989,2]
[408452580,1773659431916,-141.77191175,0.00017989,2]
[408452581,1773659431925,-151.0,0.00017989,2]
[408452582,1773659431935,-234.76486537,0.00017989,2]
[408452583,1773659431944,-300.0,0.00017999,2]
[408452584,1773659431955,-7815.41032906,0.00018,2]
[408452585,1773659431965,-328.64483217,0.0001804,2]
[408452586,1773659431974,-110.72674591,0.00018191,2]
[408452588,1773659431996,-66.17325409,0.00018191,2]
[408452589,1773659432006,-150.0,0.00018712,2]
[408452590,1773659432015,-258.02968091,0.00018822,2]
[408452591,1773659432027,-265.84703492,0.00018822,2]
[408452593,1773659432038,-362.55328417,0.00018822,2]
[408452595,1773659432047,-500.0,0.00018999,2]
[408452597,1773659432056,-500.0,0.00018999,2]
[408452599,1773659432065,-500.0,0.00018999,2]
[408452601,1773659432075,-500.0,0.00018999,2]
[408452604,1773659432085,-500.0,0.00018999,2]
[408452606,1773659432094,-500.0,0.00018999,2]
[408452609,1773659432104,-500.0,0.00018999,2]
[408452611,1773659432113,-500.0,0.00018999,2]
[408452613,1773659432122,-500.0,0.00018999,2]
[408452615,1773659432131,-500.0,0.00018999,2]
[408452617,1773659432140,-500.0,0.00018999,2]
[408452619,1773659432150,-500.0,0.00018999,2]
[408452620,1773659432159,-647.0,0.00019052,2]
[408452621,1773659432168,-1369.68,0.00019066,2]
[408452622,1773659432177,-250.0,0.00019225,2]
[408452623,1773659432186,-1680.0,0.00019255,2]
[408452624,1773659432196,-500.0,0.000193,2]
[408452625,1773659432206,-647.0,0.00019355,2]
[408452626,1773659432216,-2400.1113,0.00019447,2]
[408452627,1773659432225,-647.0,0.00019503,2]
[408452628,1773659432234,-1214.0,0.00019518,2]
[408452629,1773659432244,-939.582,0.00019518,2]
[408452630,1773659432252,-168.1,0.0001956,2]
[408452631,1773659432262,-488.0,0.00019582,2]
[408452632,1773659432277,-647.0,0.00019642,2]
[408452633,1773659432287,-500.0,0.00019671,2]
[408452634,1773659432297,-153.92106085,0.00019714,2]
[408452635,1773659432307,-500.0,0.00019726,2]
[408452636,1773659432317,-517.0,0.00019726,2]
[408452637,1773659432326,-500.0,0.00019726,7]
[408452638,1773659432336,-500.0,0.00019726,7]
[408452639,1773659432346,-500.0,0.00019726,2]
[408452640,1773659432356,-500.0,0.00019726,7]
[408452641,1773659432365,-416.028,0.00019748,2]
[408452642,1773659432375,-6003.0,0.00019748,2]
[408452643,1773659432384,-500.0,0.00019781,2]
[408452644,1773659432394,-517.0,0.00019781,2]
[408452645,1773659432404,-500.0,0.00019781,7]
[408452646,1773659432414,-648.39730491,0.00019781,7]
[408452647,1773659432424,-500.0,0.00019781,2]
[408452648,1773659432434,-500.0,0.00019781,7]
[408452649,1773659432444,-3281.0,0.000198,2]
[408452650,1773659432454,-666.66666,0.000198,2]
[408452651,1773659432464,-666.66667,0.000198,2]
[408452652,1773659432473,-250.0,0.000198,2]
[408452653,1773659432482,-500.0,0.00019835,2]
[408452654,1773659432491,-517.0,0.00019836,2]
[408452655,1773659432501,-500.0,0.00019836,7]
[408452656,1773659432511,-500.0,0.00019836,2]
[408452657,1773659432521,-500.0,0.00019836,7]
[408452658,1773659432530,-1045.93741878,0.00019845,2]
[408452659,1773659432539,-250.0,0.00019845,2]
[408452660,1773659432548,-1000.0,0.00019848,2]
[408452661,1773659432557,-1045.93741874,0.00019851,2]
[408452662,1773659432566,-250.0,0.00019853,2]
[408452663,1773659432575,-1045.93741874,0.00019857,2]
[408452664,1773659432584,-966.31376663,0.00019862,2]
[408452665,1773659432593,-1006.68660366,0.00019862,2]
[408452666,1773659432603,-2060.956,0.00019863,2]
[408452667,1773659432612,-174.561,0.00019863,2]
[408452668,1773659432622,-1045.93741874,0.00019863,2]
[408452669,1773659432631,-1045.93741874,0.00019869,2]
[408452670,1773659432640,-1045.93741874,0.00019876,2]
[408452671,1773659432649,-1045.93741874,0.00019882,2]
[408452672,1773659432663,-1045.93741874,0.00019888,2]
[408452673,1773659432672,-500.0,0.0001989,2]
[408452674,1773659432682,-517.0,0.0001989,2]
[408452675,1773659432692,-274.16028169,0.0001989,2]
[408452676,1773659432703,-500.0,0.0001989,7]
[408452677,1773659432713,-1045.93741874,0.00019894,2]
[408452678,1773659432723,-1000.0,0.00019899,2]
[408452679,1773659432732,-32961.6878,0.00019899,2]
[408452680,1773659432742,-1019.93644834,0.00019899,2]
[408452681,1773659432751,-500.0,0.00019899,2]
[408452682,1773659432761,-500.0,0.00019899,2]
[408452683,1773659432770,-500.0,0.00019899,2]
[408452684,1773659432780,-500.0,0.00019899,2]
[408452685,1773659432789,-494.63537201,0.00019899,2]
[408452686,1773659432799,-500.0,0.00019899,2]
[408452687,1773659432808,-1019.93644834,0.00019899,2]
[408452688,1773659432821,-1019.93644834,0.00019899,2]
[408452689,1773659432831,-1019.93644834,0.00019899,2]
[408452690,1773659432840,-1019.93644834,0.000199,2]
[408452691,1773659432851,-1019.93644834,0.000199,2]
[408452692,1773659432861,-1019.93644834,0.000199,2]
[408452693,1773659432871,-5000.0,0.000199,2]
[408452694,1773659432880,-26046.4578513,0.000199,2]
[408452695,1773659432892,-1045.93741874,0.000199,2]
[408452696,1773659432901,-1019.93644834,0.000199,2]
[408452697,1773659432911,-831.51048291,0.000199,2]
[408452698,1773659432921,-580.49662572,0.000199,2]
[408452699,1773659432931,-18184.4901417,0.000199,3]
[408452700,1773659432940,-250.0,0.000199,2]
[408452701,1773659432951,-49659.67258442,0.000199,2]
[408452702,1773659432962,-250.0,0.00019918,2]
[408452703,1773659432971,-500.0,0.00019945,2]
[408452704,1773659432981,-250.0,0.00019945,2]
[408452705,1773659432990,-517.0,0.00019945,2]
[408452706,1773659433000,-10002.93,0.00019945,2]
[408452707,1773659433009,-502.24595461,0.00019973,2]
[408452708,1773659433019,-500.91833216,0.00019973,2]
[408452709,1773659433029,-502.24459524,0.00019973,2]
[408452710,1773659433038,-526.19704835,0.00019973,2]
[408452711,1773659433052,-332.04439719,0.00019973,2]
[408452712,1773659433062,-336.85380746,0.00019973,2]
[408452713,1773659433071,-501.93995683,0.00019973,2]
[408452714,1773659433266,-506.49172954,0.00019973,2]
[408452715,1773659433276,-500.0,0.00019973,2]
[408452716,1773659433286,-500.0,0.00019973,2]
[408452717,1773659433296,-500.0,0.00019973,2]
[408452718,1773659433305,-501.14795082,0.00019973,2]
[408452719,1773659433314,-500.0,0.00019973,2]
[408452720,1773659433323,-500.48646595,0.00019973,2]
[408452721,1773659433333,-503.22825721,0.00019973,2]
[408452722,1773659433342,-500.0,0.00019973,2]
[408452723,1773659433352,-500.0,0.00019973,2]
[408452724,1773659433361,-500.0,0.00019973,2]
[408452725,1773659433370,-500.0,0.00019973,2]
[408452726,1773659433381,-500.0,0.00019973,2]
[408452727,1773659433391,-409.01152396,0.0001998,2]
[408452728,1773659433402,-250.0,0.00019985,2]
[408452729,1773659433412,-618.8,0.00019989,2]
[408452730,1773659433422,-536.49250669,0.0001999,2]
[408452731,1773659433433,-536.49250669,0.0001999,2]
[408452732,1773659433444,-536.49250669,0.0001999,2]
[408452733,1773659433457,-618.8,0.0001999,2]
[408452734,1773659433467,-618.8,0.0001999,2]
[408452735,1773659433477,-618.8,0.0001999,2]
[408452736,1773659433487,-618.8,0.0001999,2]
[408452737,1773659433500,-1000.0,0.00019993,2]
[408452738,1773659433512,-1000.0,0.00019993,2]
[408452739,1773659433523,-1000.0,0.00019993,2]
[408452740,1773659433533,-1000.0,0.00019993,2]
[408452741,1773659433544,-1000.0,0.00019993,2]
[408452742,1773659433554,-1000.0,0.00019993,2]
[408452743,1773659433563,-266.452,0.00019993,2]
[408452744,1773659433572,-151.0,0.00019997,2]
[408452745,1773659433583,-151.0,0.00019997,2]
[408452746,1773659433595,-500.0,0.00019998,2]
[408452747,1773659433604,-500.0,0.00019998,2]
[408452748,1773659433613,-12971.7133779,0.00019998,2]
[408452749,1773659433623,-17303.5434521,0.00019998,2]
[408452750,1773659433634,-500.0,0.00019998,2]
[408452751,1773659433644,-500.0,0.00019998,2]
[408452752,1773659433653,-309.40321204,0.00019999,2]
[408452753,1773659433664,-690.01041515,0.00019999,2]
[408452754,1773659433674,-553.49386102,0.00019999,2]
[408452755,1773659433684,-221.0,0.00019999,2]
[408452756,1773659433695,-1151.278279,0.00019999,5]
[408452757,1773659433709,-1151.278279,0.00019999,5]
[408452758,1773659433719,-545.20030778,0.00019999,2]
[408452759,1773659433729,-350.67723425,0.00019999,2]
[408452760,1773659433739,-155.0,0.00019999,2]
[408452761,1773659433749,-500.0,0.00019999,2]
[408452762,1773659433758,-500.0,0.00019999,2]
[408452763,1773659433767,-500.0,0.00019999,2]
[408452764,1773659433777,-500.0,0.00019999,2]
[408452765,1773659433786,-500.0,0.00019999,2]
[408452766,1773659433796,-500.0,0.00019999,2]
[408452767,1773659433807,-500.0,0.00019999,2]
[408452768,1773659433820,-500.0,0.00019999,2]
[408452769,1773659433831,-500.0,0.00019999,2]
[408452770,1773659433840,-500.0,0.00019999,2]
[408452771,1773659433851,-500.0,0.00019999,2]
[408452772,1773659433860,-500.0,0.00019999,2]
[408452773,1773659433870,-500.0,0.00019999,2]
[408452774,1773659433879,-500.0,0.00019999,2]
[408452775,1773659433890,-500.0,0.00019999,2]
[408452776,1773659433901,-507.94642183,0.00019999,2]
[408452777,1773659433910,-500.0,0.00019999,2]
[408452778,1773659433920,-500.0,0.00019999,2]
[408452779,1773659433930,-500.0,0.00019999,2]
[408452780,1773659433939,-500.0,0.00019999,2]
[408452781,1773659433949,-500.0,0.00019999,2]
[408452782,1773659433960,-500.0,0.00019999,2]
[408452783,1773659433970,-500.0,0.00019999,2]
[408452784,1773659433980,-500.0,0.00019999,2]
[408452785,1773659433992,-500.0,0.00019999,2]
[408452786,1773659434004,-500.0,0.00019999,2]
[408452787,1773659434014,-500.0,0.00019999,2]
[408452788,1773659434025,-559.56880339,0.00019999,2]
[408452789,1773659434035,-500.0,0.00019999,2]
[408452790,1773659434045,-500.0,0.00019999,2]
[408452791,1773659434055,-500.0,0.00019999,2]
[408452792,1773659434065,-500.0,0.00019999,2]
[408452793,1773659434075,-500.0,0.00019999,2]
[408452794,1773659434084,-500.0,0.00019999,2]
[408452795,1773659434094,-500.0,0.00019999,2]
[408452796,1773659434104,-500.0,0.00019999,2]
[408452797,1773659434114,-500.0,0.00019999,2]
[408452798,1773659434123,-500.0,0.00019999,2]
[408452799,1773659434132,-398.111047,0.00019999,2]
[408452800,1773659434142,-500.0,0.00019999,2]
[408452801,1773659434151,-500.0,0.00019999,2]
[408452802,1773659434160,-500.0,0.00019999,2]
[408452803,1773659434169,-500.0,0.00019999,2]
[408452804,1773659434178,-500.0,0.00019999,2]
[408452805,1773659434187,-600.49565647,0.00019999,2]
[408452806,1773659434196,-377.53591262,0.00019999,2]
[408452807,1773659434208,-1090.97,0.00019999,2]
[408452808,1773659434217,-1090.97,0.00019999,2]
[408452809,1773659434226,-1090.97,0.00019999,2]
[408452810,1773659434235,-1090.97,0.00019999,2]
[408452811,1773659434245,-1090.97,0.00019999,2]
[408452812,1773659434254,-1090.97,0.00019999,2]
[408452813,1773659434262,-1090.97,0.00019999,2]
[408452814,1773659434271,-1090.97,0.00019999,2]
[408452815,1773659434280,-1090.97,0.00019999,2]
[408452816,1773659434291,-1090.97,0.00019999,2]
[408452817,1773659434299,-1090.97,0.00019999,2]
[408452818,1773659434308,-1090.97,0.00019999,2]
[408452819,1773659434317,-1090.97,0.00019999,2]
[408452820,1773659434326,-1090.97,0.00019999,2]
[408452821,1773659434336,-1090.97,0.00019999,2]
[408452822,1773659434345,-1090.97,0.00019999,2]
[408452823,1773659434354,-1090.97,0.00019999,2]
[408452824,1773659434364,-1090.97,0.00019999,2]
[408452825,1773659434373,-1090.97,0.00019999,2]
[408452826,1773659434382,-1090.97,0.00019999,2]
[408452827,1773659434391,-1090.97,0.00019999,2]
[408452828,1773659434400,-1090.97,0.00019999,2]
[408452829,1773659434409,-1090.97,0.00019999,2]
[408452830,1773659434419,-1091.05193391,0.00019999,2]
[408452831,1773659434431,-500.0,0.00019999,2]
[408452832,1773659434441,-500.0,0.00019999,2]
[408452833,1773659434451,-509.69645658,0.00019999,2]
[408452834,1773659434460,-155.0,0.00019999,2]
[408452835,1773659434469,-500.0,0.00019999,2]
[408452836,1773659434478,-500.0,0.00019999,2]
[408452837,1773659434488,-500.0,0.00019999,2]
[408452838,1773659434498,-500.0,0.00019999,2]
[408452839,1773659434507,-177.63188648,0.00019999,2]
[408452840,1773659434518,-515.47518907,0.00019999,2]
[408452841,1773659434528,-500.0,0.00019999,2]
[408452842,1773659434538,-500.0,0.00019999,2]
[408452843,1773659434547,-500.0,0.00019999,2]
[408452844,1773659434556,-500.0,0.00019999,2]
[408452845,1773659434567,-500.0,0.00019999,2]
[408452846,1773659434577,-500.0,0.00019999,2]
[408452847,1773659434587,-556.41101138,0.00019999,2]
[408452848,1773659434596,-500.0,0.00019999,2]
[408452849,1773659434606,-500.0,0.00019999,2]
[408452850,1773659434615,-615.85034056,0.00019999,2]
[408452851,1773659434625,-500.0,0.00019999,2]
[408452852,1773659434634,-500.0,0.00019999,2]
[408452853,1773659434644,-500.0,0.00019999,2]
[408452854,1773659434653,-545.30487877,0.00019999,2]
[408452855,1773659434662,-500.0,0.00019999,2]
[408452856,1773659434671,-500.0,0.00019999,2]
[408452857,1773659434680,-500.0,0.00019999,2]
[408452858,1773659434690,-500.0,0.00019999,2]
[408452859,1773659434700,-500.0,0.00019999,2]
[408452860,1773659434709,-547.30499022,0.00019999,2]
[408452861,1773659434720,-500.0,0.00019999,2]
[408452862,1773659434729,-500.0,0.00019999,2]
[408452863,1773659434739,-505.73766037,0.00019999,2]
[408452864,1773659434748,-3000.0,0.00019999,2]
[408452865,1773659434757,-500.0,0.00019999,2]
[408452866,1773659434766,-500.0,0.00019999,2]
[408452867,1773659434776,-500.0,0.00019999,2]
[408452868,1773659434785,-500.0,0.00019999,2]
[408452869,1773659434795,-500.0,0.00019999,2]
[408452870,1773659434804,-216.57302616,0.00019999,2]
[408452871,1773659434817,-500.0,0.00019999,2]
[408452872,1773659434828,-500.0,0.00019999,2]
[408452873,1773659434837,-500.0,0.00019999,2]
[408452874,1773659434846,-500.0,0.00019999,2]
[408452875,1773659434856,-500.0,0.00019999,2]
[408452876,1773659434866,-500.0,0.00019999,2]
[408452877,1773659434875,-500.0,0.00019999,2]
[408452878,1773659434884,-500.0,0.00019999,2]
[408452879,1773659434894,-500.0,0.00019999,2]
[408452880,1773659434904,-322.54953981,0.00019999,2]
[408452881,1773659434913,-192.50897368,0.00019999,2]
[408452882,1773659434922,-500.0,0.00019999,2]
[408452883,1773659434931,-356.79317313,0.00019999,2]
[408452884,1773659434940,-2694.0,0.0002,5]
[408452885,1773659434949,-2150.0,0.0002,5]
[408452886,1773659434958,-500.0,0.0002,2]
[408452887,1773659434967,-517.0,0.0002,2]
[408452888,1773659434976,-307.5,0.0002,2]
[408452889,1773659434985,-181.2325,0.0002,2]
[408452890,1773659434993,-181.2325,0.0002,2]
[408452891,1773659435002,-151.0,0.0002,2]
[408452892,1773659435011,-24593.34434247,0.0002,2]
[408452893,1773659435183,-47614.5011279,0.0002,2]
[408452894,1773659435195,-33722.13037335,0.0002,2]
[408452895,1773659437775,-154.18560746,0.00019999,2]
[408452896,1773659437784,-345.81439254,0.0002,2]
[408452897,1773659437795,-1070.36465114,0.0002,2]
[408452898,1773659437806,-73776.16809941,0.0002,2]
[408452899,1773659437829,-281.09722308,0.0002,2]
[408452900,1773659437883,-833.66172791,0.0002,2]
[408452907,1773659439922,-2092.3788,0.000199,2]
[408452908,1773659439932,-2926078.2127989,0.0002,2]
[408452911,1773659439975,-262.632924,0.0002,2]
[408452912,1773659440238,-301.12623681,0.00019748,2]
[408452948,1773659442843,-737.04,0.00019748,2]
[408452949,1773659442898,-1425.83376319,0.00019748,2]
[408452950,1773659442909,-1253.59763872,0.0002,2]
[408452951,1773659443005,-13694.93090108,0.0002,2]
[408452990,1773659445848,-2000.0,0.000197,2]
[408452991,1773659445859,-7020.1766,0.00019776,2]
[408452992,1773659445869,-264.71308759,0.000198,2]
[408452993,1773659445882,-1735.28691241,0.000198,2]
[408452994,1773659445892,-2000.0,0.000199,2]
[408452995,1773659445903,-5517.91374518,0.0002,2]
[408452996,1773659445914,-500.0,0.0002,2]
[408452997,1773659445930,-70397.73370247,0.0002,2]
[408452998,1773659445942,-9000.0,0.0002,2]
[408452999,1773659446049,-1406.94000008,0.0002,2]
[408453000,1773659446061,-1259.52021809,0.0002,2]
[408453001,1773659446073,-605.31448318,0.0002,2]
[408453002,1773659446104,-368.715,0.0002,2]
[408453003,1773659446115,-12243.25995398,0.0002,2]
[408453006,1773659660690,156.63,9.465e-05,2]
[408453007,1773659661139,156.63,0.00010254,2]
[408453008,1773659661349,156.63,0.00011042,2]
[408453009,1773659661564,156.63,0.00011831,2]
[408453010,1773659661997,156.63,0.0001262,2]
[408453011,1773659662050,156.63,0.00013409,2]
[408453012,1773659662249,156.63,0.00014197,2]
[408453013,1773659662568,156.63,0.00014986,2]
[408453014,1773659662656,156.63,0.00015775,2]
[408453015,1773659762877,49711.0,0.000205,120]
[408453017,1773659835405,41018.0551617,0.0002,120]
[408453022,1773660429107,-156.63,0.00016563,2]
[408453023,1773660429128,-585.86444,0.00017,2]
[408453024,1773660429149,-156.63,0.00017352,2]
[408453025,1773660429170,-394.66150951,0.00017366,2]
[408453026,1773660429191,-166.66,0.00018065,2]
[408453027,1773660429212,-77.62184224,0.00018141,2]
[408453040,1773660632096,-616.0,0.00017,2]
[408453042,1773660632106,-616.0,0.00017,2]
[408453044,1773660632115,-265.712551,0.0001805,2]
[408453046,1773660632126,-79.00815776,0.00018141,2]
[408453048,1773660632139,-465.14483843,0.00018218,2]
[408453050,1773660632148,-1510.2511326,0.0001822,2]
[408453052,1773660632157,-500.0,0.00018369,2]
[408453053,1773660632167,-412.87,0.00018387,2]
[408453055,1773660632180,-1677.93,0.00018442,2]
[408453056,1773660632190,-166.66,0.00018446,2]
[408453057,1773660632202,-200.0,0.00018555,2]
[408453058,1773660632212,-200.0,0.00018582,2]
[408453059,1773660632222,-480.0,0.00018665,2]
[408453060,1773660632233,-500.0,0.00018666,2]
[408453061,1773660632242,-250.0,0.000187,2]
[408453062,1773660632252,-150.0,0.0001873,2]
[408453063,1773660632262,-222.0,0.00018757,2]
[408453064,1773660632271,-715.42,0.00018772,2]
[408453065,1773660632281,-2517.13259472,0.00018803,2]
[408453066,1773660632291,-166.66,0.00018826,2]
[408453067,1773660632301,-300.0,0.00018898,2]
[408453068,1773660632310,-3356.17679297,0.00018899,2]
[408453069,1773660632320,-1677.93,0.00018903,2]
[408453070,1773660632329,-200.67583713,0.00018926,2]
[408453071,1773660632338,-156.63,0.0001893,2]
[408453072,1773660632349,-200.0,0.00018988,2]
[408453073,1773660632359,-682.58,0.00018999,2]
[408453074,1773660632368,-167.49845187,0.00018999,2]
[408453075,1773660632378,-500.0,0.00018999,2]
[408453076,1773660632388,-500.0,0.00018999,2]
[408453077,1773660632398,-500.0,0.00018999,2]
[408453078,1773660632408,-500.0,0.00018999,2]
[408453079,1773660632417,-500.0,0.00018999,2]
[408453080,1773660632427,-500.0,0.00018999,2]
[408453081,1773660632436,-500.0,0.00018999,2]
[408453082,1773660632446,-200.0,0.00018999,2]
[408453083,1773660632455,-500.0,0.00018999,2]
[408453084,1773660632465,-500.0,0.00018999,2]
[408453085,1773660632474,-500.0,0.00018999,2]
[408453086,1773660632483,-500.0,0.00018999,2]
[408453087,1773660632493,-500.0,0.00018999,2]
[408453088,1773660632504,-181.08010149,0.00018999,2]
[408453089,1773660632514,-250.0,0.00018999,2]
[408453090,1773660632523,-250.0,0.00018999,2]
[408453091,1773660632533,-250.0,0.00018999,2]
[408453092,1773660632543,-250.0,0.00018999,2]
[408453093,1773660632552,-250.0,0.00018999,2]
[408453094,1773660632562,-250.0,0.00018999,2]
[408453095,1773660632571,-250.0,0.00018999,2]
[408453096,1773660632580,-250.0,0.00018999,2]
[408453097,1773660632589,-500.0,0.00018999,2]
[408453098,1773660632598,-500.0,0.00018999,2]
[408453099,1773660632607,-500.0,0.00018999,2]
[408453100,1773660632616,-500.0,0.00018999,2]
[408453101,1773660632625,-500.0,0.00018999,2]
[408453102,1773660632634,-500.0,0.00018999,2]
[408453103,1773660632643,-500.0,0.00018999,2]
[408453104,1773660632652,-172.79,0.00019037,2]
[408453105,1773660632661,-2517.1325947,0.00019068,2]
[408453106,1773660632671,-500.0,0.0001915,2]
[408453107,1773660632680,-186.26012149,0.0001915,2]
[408453108,1773660632689,-448.24083087,0.0001915,2]
[408453109,1773660632698,-285.3465003,0.0001915,2]
[408453110,1773660632707,-500.0,0.0001915,2]
[408453111,1773660632717,-166.66,0.00019206,2]
[408453112,1773660632726,-166.7,0.00019253,2]
[408453113,1773660632736,-682.58,0.00019273,2]
[408453114,1773660632745,-465.11,0.00019294,2]
[408453115,1773660632754,-565.0,0.00019321,2]
[408453116,1773660632763,-2517.1325947,0.00019333,2]
[408453117,1773660632772,-565.0,0.00019359,2]
[408453118,1773660632781,-1677.93,0.00019364,2]
[408453119,1773660632790,-202.0,0.0001954,2]
[408453120,1773660632799,-682.58,0.00019547,2]
[408453121,1773660632809,-200.0,0.00019547,2]
[408453122,1773660632818,-565.0,0.00019554,2]
[408453123,1773660632827,-465.11,0.00019557,2]
[408453124,1773660632836,-166.66,0.00019587,2]
[408453125,1773660632845,-2517.1325947,0.00019598,2]
[408453126,1773660632854,-173.41,0.00019598,2]
[408453127,1773660632867,-1859.1841,0.00019599,2]
[408453128,1773660632877,-616.71685214,0.000196,2]
[408453129,1773660632887,-378.32729353,0.000196,2]
[408453130,1773660632897,-9588.95724247,0.00019688,2]
[408453131,1773660632906,-1000.0,0.00019698,2]
[408453132,1773660632916,-1024.70815383,0.00019698,2]
[408453133,1773660632925,-1920.9046,0.00019698,2]
[408453134,1773660632935,-34025.7932,0.00019698,2]
[408453135,1773660632944,-7020.1766,0.00019699,2]
[408453136,1773660632954,-2000.0,0.000197,2]
[408453137,1773660632963,-2000.0,0.000197,2]
[408453138,1773660632972,-153.92106085,0.00019704,2]
[408453139,1773660632982,-354.34104239,0.00019721,2]
[408453140,1773660632991,-498.53629493,0.00019723,2]
[408453141,1773660633001,-200.0,0.00019726,2]
[408453142,1773660633011,-500.0,0.00019726,2]
[408453143,1773660633021,-541.0,0.00019726,2]
[408453144,1773660633030,-150.0,0.00019726,2]
[408453145,1773660633042,-498.5362949,0.00019743,2]
[408453146,1773660633051,-354.34104237,0.00019747,2]
[408453147,1773660633061,-498.5362949,0.00019762,2]
[408453148,1773660633070,-354.34104237,0.00019772,2]
[408453149,1773660633079,-465.11,0.00019773,2]
[408453150,1773660633088,-500.0,0.00019781,2]
[408453151,1773660633097,-541.0,0.00019781,2]
[408453152,1773660633106,-150.0,0.00019781,2]
[408453153,1773660633116,-498.5362949,0.00019782,2]
[408453154,1773660633125,-354.34104237,0.00019798,2]
[408453155,1773660633135,-4142.2444,0.00019798,2]
[408453156,1773660633145,-622.3328,0.000198,2]